[Event "*** Titled Tuesday Blitz"]
[Site "Chess.com"]
[Date "2020.05.05"]
[Round "2"]
[White "JakeCarlosBanawa"]
[Black "vanea_03"]
[Result "0-1"]
[WhiteElo "2309"]
[BlackElo "2630"]
[TimeControl "180+1"]
[EndTime "10:19:11 PDT"]
[Termination "vanea_03 won on time"]

1. d4 {[%clk 0:03:00.9]} 1... d5 {[%clk 0:02:59.8]} 2. c4 {[%clk 0:03:00.6]}
2... dxc4 {[%clk 0:03:00.1]} 3. e4 {[%clk 0:02:59.7]} 3... Nf6 {[%clk
0:02:59.9]} 4. e5 {[%clk 0:02:59.7]} 4... Nd5 {[%clk 0:03:00.2]} 5. Bxc4 {[%clk
0:03:00.4]} 5... Nb6 {[%clk 0:03:00.8]} 6. Bd3 {[%clk 0:02:58.7]} 6... Nc6
{[%clk 0:03:00.6]} 7. Be3 {[%clk 0:02:57.4]} 7... Nb4 {[%clk 0:03:00.6]} 8. Be4
{[%clk 0:02:56.5]} 8... f5 {[%clk 0:02:59.8]} 9. exf6 {[%clk 0:02:48.9]} 9...
exf6 {[%clk 0:02:59.4]} 10. Nc3 {[%clk 0:02:49.6]} 10... f5 {[%clk 0:02:56.8]}
11. Bf3 {[%clk 0:02:34.2]} 11... N4d5 {[%clk 0:02:41.3]} 12. Nxd5 {[%clk
0:02:23.8]} 12... Nxd5 {[%clk 0:02:40.7]} 13. Qb3 {[%clk 0:02:24.4]} 13... c6
{[%clk 0:02:40.3]} 14. Bxd5 {[%clk 0:02:20.4]} 14... Qxd5 {[%clk 0:02:40.3]} 15.
Qxd5 {[%clk 0:02:19]} 15... cxd5 {[%clk 0:02:41.2]} 16. Ne2 {[%clk 0:02:19.1]}
16... Bd7 {[%clk 0:02:16.2]} 17. Rc1 {[%clk 0:02:18.1]} 17... Bc6 {[%clk
0:02:15.2]} 18. Nf4 {[%clk 0:02:11.6]} 18... g5 {[%clk 0:02:09.1]} 19. Nd3
{[%clk 0:02:09.7]} 19... f4 {[%clk 0:02:09.5]} 20. Bd2 {[%clk 0:02:07.4]} 20...
Bg7 {[%clk 0:02:08.2]} 21. h4 {[%clk 0:02:02.8]} 21... h6 {[%clk 0:02:07.9]} 22.
hxg5 {[%clk 0:01:35.9]} 22... hxg5 {[%clk 0:02:08.8]} 23. Rxh8+ {[%clk 0:01:36]}
23... Bxh8 {[%clk 0:02:09.5]} 24. g3 {[%clk 0:01:36.6]} 24... fxg3 {[%clk
0:02:06.1]} 25. fxg3 {[%clk 0:01:35.7]} 25... Bxd4 {[%clk 0:02:05.2]} 26. Bxg5
{[%clk 0:01:34.8]} 26... Kf7 {[%clk 0:01:49.1]} 27. Kd2 {[%clk 0:01:32]} 27...
Kg6 {[%clk 0:01:48.1]} 28. Be3 {[%clk 0:01:26.7]} 28... Bf6 {[%clk 0:01:44.1]}
29. Nb4 {[%clk 0:01:19.2]} 29... Be8 {[%clk 0:00:58.8]} 30. Nd3 {[%clk
0:01:00.9]} 30... d4 {[%clk 0:00:41.3]} 31. Bf4 {[%clk 0:00:56.2]} 31... Bb5
{[%clk 0:00:30.6]} 32. Rc7 {[%clk 0:00:34.4]} 32... Rh8 {[%clk 0:00:23.6]} 33.
Ne5+ {[%clk 0:00:21.1]} 33... Bxe5 {[%clk 0:00:14.9]} 34. Bxe5 {[%clk 0:00:22]}
34... Rh2+ {[%clk 0:00:15]} 35. Kd1 {[%clk 0:00:22.5]} 35... Be2+ {[%clk
0:00:09.7]} 36. Ke1 {[%clk 0:00:21.3]} 36... d3 {[%clk 0:00:06.8]} 37. Bf4
{[%clk 0:00:19.8]} 37... Bf3 {[%clk 0:00:05.8]} 38. Rd7 {[%clk 0:00:17]} 38...
Re2+ {[%clk 0:00:02.9]} 39. Kf1 {[%clk 0:00:16.7]} 39... Be4 {[%clk 0:00:03.4]}
40. g4 {[%clk 0:00:10.8]} 40... Rxb2 {[%clk 0:00:02.8]} 41. Rd6+ {[%clk
0:00:09.6]} 41... Kf7 {[%clk 0:00:03.1]} 42. g5 {[%clk 0:00:09.4]} 42... Bg6
{[%clk 0:00:02.8]} 43. Rf6+ {[%clk 0:00:05.6]} 43... Kg7 {[%clk 0:00:02.8]} 44.
Be5 {[%clk 0:00:05.7]} 44... Rb1+ {[%clk 0:00:03.2]} 45. Kf2 {[%clk 0:00:05.4]}
45... Kh7 {[%clk 0:00:03.6]} 46. Rf8 {[%clk 0:00:05.1]} 46... Be4 {[%clk
0:00:02.8]} 47. Rf6 {[%clk 0:00:04.9]} 47... d2 {[%clk 0:00:02.8]} 48. Rh6+
{[%clk 0:00:01.7]} 48... Kg8 {[%clk 0:00:03.4]} 49. g6 {[%clk 0:00:02.4]} 49...
Bxg6 {[%clk 0:00:03.5]} 50. Rxg6+ {[%clk 0:00:02.8]} 50... Kf7 {[%clk 0:00:04]}
51. Rd6 {[%clk 0:00:01.9]} 51... d1=Q {[%clk 0:00:04.2]} 52. Rxd1 {[%clk
0:00:02.6]} 52... Rxd1 {[%clk 0:00:05.1]} 53. Bb8 {[%clk 0:00:02.3]} 53... Rd5
{[%clk 0:00:06]} 54. Bxa7 {[%clk 0:00:01.6]} 54... Ra5 {[%clk 0:00:06.5]} 0-1

[Event "*** Titled Tuesday Blitz"]
[Site "Chess.com"]
[Date "2020.05.05"]
[Round "2"]
[White "norwaytoadog"]
[Black "adriangschnitzer"]
[Result "0-1"]
[WhiteElo "2166"]
[BlackElo "2412"]
[TimeControl "180+1"]
[EndTime "10:19:12 PDT"]
[Termination "adriangschnitzer won on time"]

1. e4 {[%clk 0:03:00.8]} 1... c6 {[%clk 0:02:59.5]} 2. d4 {[%clk 0:03:00.4]}
2... d5 {[%clk 0:03:00.4]} 3. e5 {[%clk 0:03:00.6]} 3... c5 {[%clk 0:03:00]} 4.
c3 {[%clk 0:03:00.8]} 4... Bf5 {[%clk 0:02:58.8]} 5. Be2 {[%clk 0:03:00.9]} 5...
Nc6 {[%clk 0:02:58]} 6. Nf3 {[%clk 0:03:00]} 6... e6 {[%clk 0:02:58.2]} 7. O-O
{[%clk 0:02:57.4]} 7... h6 {[%clk 0:02:53.4]} 8. Be3 {[%clk 0:02:54.6]} 8...
cxd4 {[%clk 0:02:38]} 9. cxd4 {[%clk 0:02:52]} 9... Nge7 {[%clk 0:02:33.3]} 10.
Nc3 {[%clk 0:02:46.7]} 10... Bh7 {[%clk 0:02:30]} 11. g4 {[%clk 0:02:30.4]}
11... h5 {[%clk 0:02:18.7]} 12. h3 {[%clk 0:02:27.7]} 12... hxg4 {[%clk
0:02:16.5]} 13. hxg4 {[%clk 0:02:27.3]} 13... Be4 {[%clk 0:02:08.3]} 14. Nxe4
{[%clk 0:02:05.7]} 14... dxe4 {[%clk 0:02:09.2]} 15. Ng5 {[%clk 0:02:03.1]}
15... Nd5 {[%clk 0:01:58.7]} 16. Qd2 {[%clk 0:01:38.4]} 16... Bb4 {[%clk
0:01:55.8]} 17. Qc1 {[%clk 0:01:31.2]} 17... Rc8 {[%clk 0:01:55.1]} 18. Bb5
{[%clk 0:01:15]} 18... a6 {[%clk 0:01:43.4]} 19. Ba4 {[%clk 0:00:56.3]} 19... b5
{[%clk 0:01:27.4]} 20. Bc2 {[%clk 0:00:54.9]} 20... Nxe3 {[%clk 0:00:47]} 21.
Qxe3 {[%clk 0:00:52.7]} 21... Nxd4 {[%clk 0:00:41.4]} 22. Bxe4 {[%clk
0:00:48.4]} 22... Be7 {[%clk 0:00:07.8]} 23. Nf3 {[%clk 0:00:45.7]} 23... Nxf3+
{[%clk 0:00:04.4]} 24. Qxf3 {[%clk 0:00:45.5]} 24... Bc5 {[%clk 0:00:03.9]} 25.
Kg2 {[%clk 0:00:43.4]} 25... Qg5 {[%clk 0:00:02.6]} 26. Rh1 {[%clk 0:00:37.7]}
26... Rxh1 {[%clk 0:00:02.5]} 27. Rxh1 {[%clk 0:00:37.3]} 27... Ke7 {[%clk
0:00:03.4]} 28. Bc2 {[%clk 0:00:21.6]} 28... Qxe5 {[%clk 0:00:03]} 29. Qb7+
{[%clk 0:00:18.2]} 29... Rc7 {[%clk 0:00:02.9]} 30. Qf3 {[%clk 0:00:14.7]} 30...
Qxb2 {[%clk 0:00:03.2]} 31. Bb3 {[%clk 0:00:12.5]} 31... Qf6 {[%clk 0:00:02.5]}
32. Qg3 {[%clk 0:00:10.9]} 32... Bd6 {[%clk 0:00:02.4]} 33. Qe3 {[%clk
0:00:09.9]} 33... Rc3 {[%clk 0:00:02.4]} 34. Qa7+ {[%clk 0:00:09]} 34... Rc7
{[%clk 0:00:02.9]} 35. Qe3 {[%clk 0:00:08.3]} 35... Qf4 {[%clk 0:00:02.7]} 36.
Rh7 {[%clk 0:00:05.1]} 36... Qxe3 {[%clk 0:00:02.6]} 37. fxe3 {[%clk 0:00:05.4]}
37... Be5 {[%clk 0:00:03.5]} 38. Kf3 {[%clk 0:00:05.1]} 38... Bf6 {[%clk
0:00:03.7]} 39. Rh5 {[%clk 0:00:04.7]} 39... Rc3 {[%clk 0:00:04.1]} 40. g5
{[%clk 0:00:04.1]} 40... Bd4 {[%clk 0:00:04.3]} 41. Rh7 {[%clk 0:00:03.9]} 41...
Rxe3+ {[%clk 0:00:04.1]} 42. Kg4 {[%clk 0:00:03.9]} 42... Re4+ {[%clk
0:00:03.8]} 43. Kf3 {[%clk 0:00:03.6]} 43... Re1 {[%clk 0:00:04.7]} 44. g6
{[%clk 0:00:02.8]} 44... fxg6 {[%clk 0:00:04.4]} 45. Rh8 {[%clk 0:00:02.9]}
45... Re3+ {[%clk 0:00:04.4]} 46. Kg2 {[%clk 0:00:01.7]} 46... Rc3 {[%clk
0:00:04.7]} 0-1

[Event "*** Titled Tuesday Blitz"]
[Site "Chess.com"]
[Date "2020.05.05"]
[Round "2"]
[White "Saxar85"]
[Black "albano87"]
[Result "1-0"]
[WhiteElo "2653"]
[BlackElo "2391"]
[TimeControl "180+1"]
[EndTime "10:19:13 PDT"]
[Termination "Saxar85 won on time"]

1. e4 {[%clk 0:02:58.5]} 1... c5 {[%clk 0:02:51.7]} 2. Nf3 {[%clk 0:02:57.8]}
2... Nc6 {[%clk 0:02:50.2]} 3. Bb5 {[%clk 0:02:54.2]} 3... d6 {[%clk 0:02:48.6]}
4. O-O {[%clk 0:02:51]} 4... Bd7 {[%clk 0:02:43.4]} 5. Re1 {[%clk 0:02:50.5]}
5... a6 {[%clk 0:02:38.9]} 6. Bf1 {[%clk 0:02:46.4]} 6... Bg4 {[%clk 0:02:31.5]}
7. c3 {[%clk 0:02:43.2]} 7... d5 {[%clk 0:02:22.7]} 8. h3 {[%clk 0:02:37.8]}
8... Bxf3 {[%clk 0:02:15.5]} 9. Qxf3 {[%clk 0:02:37.1]} 9... dxe4 {[%clk
0:02:15.4]} 10. Qxe4 {[%clk 0:02:37]} 10... Nf6 {[%clk 0:02:13.1]} 11. Qf3
{[%clk 0:02:36.4]} 11... e6 {[%clk 0:02:10.5]} 12. d3 {[%clk 0:02:35.9]} 12...
Be7 {[%clk 0:02:03.3]} 13. Nd2 {[%clk 0:02:35.3]} 13... O-O {[%clk 0:02:01.1]}
14. Ne4 {[%clk 0:02:34.9]} 14... Nxe4 {[%clk 0:01:47.6]} 15. dxe4 {[%clk
0:02:31.9]} 15... Ne5 {[%clk 0:01:40.2]} 16. Qg3 {[%clk 0:02:29.7]} 16... Ng6
{[%clk 0:01:37.4]} 17. e5 {[%clk 0:02:24.4]} 17... Qc7 {[%clk 0:01:32.6]} 18.
Bg5 {[%clk 0:01:49.9]} 18... Bxg5 {[%clk 0:01:27.9]} 19. Qxg5 {[%clk 0:01:49.6]}
19... Rfd8 {[%clk 0:01:25.1]} 20. g3 {[%clk 0:01:49.1]} 20... Rd5 {[%clk
0:01:12.2]} 21. Bg2 {[%clk 0:01:45.9]} 21... Rxe5 {[%clk 0:00:49.6]} 22. Rxe5
{[%clk 0:01:44.9]} 22... Qxe5 {[%clk 0:00:49.3]} 23. Qxe5 {[%clk 0:01:40.1]}
23... Nxe5 {[%clk 0:00:49.2]} 24. Bxb7 {[%clk 0:01:32.3]} 24... Ra7 {[%clk
0:00:47.1]} 25. Rd1 {[%clk 0:01:22.2]} 25... g5 {[%clk 0:00:46.4]} 26. Bg2
{[%clk 0:01:20.3]} 26... Kg7 {[%clk 0:00:45.6]} 27. b3 {[%clk 0:01:17.6]} 27...
Kf6 {[%clk 0:00:41.7]} 28. Rd6 {[%clk 0:01:15.8]} 28... a5 {[%clk 0:00:39.3]}
29. a4 {[%clk 0:01:14.2]} 29... c4 {[%clk 0:00:34.8]} 30. bxc4 {[%clk
0:01:03.6]} 30... Nxc4 {[%clk 0:00:35.7]} 31. Rd8 {[%clk 0:00:54]} 31... Nb6
{[%clk 0:00:33.7]} 32. Bc6 {[%clk 0:00:39.5]} 32... Rc7 {[%clk 0:00:31.9]} 33.
Bb5 {[%clk 0:00:39]} 33... Rxc3 {[%clk 0:00:30.9]} 34. Rd6 {[%clk 0:00:38]}
34... Nd5 {[%clk 0:00:27.3]} 35. Ra6 {[%clk 0:00:37.7]} 35... h5 {[%clk
0:00:23.4]} 36. Rxa5 {[%clk 0:00:36.9]} 36... h4 {[%clk 0:00:21.5]} 37. gxh4
{[%clk 0:00:30.4]} 37... gxh4 {[%clk 0:00:21.2]} 38. Ra7 {[%clk 0:00:26.8]}
38... Rxh3 {[%clk 0:00:18.2]} 39. Be8 {[%clk 0:00:26.6]} 39... Ra3 {[%clk
0:00:14.2]} 40. Rxf7+ {[%clk 0:00:24.9]} 40... Ke5 {[%clk 0:00:13.4]} 41. Rh7
{[%clk 0:00:24.6]} 41... Nc3 {[%clk 0:00:05.9]} 42. Rxh4 {[%clk 0:00:22.6]}
42... Ne2+ {[%clk 0:00:05.8]} 43. Kh2 {[%clk 0:00:21.5]} 43... Nf4 {[%clk
0:00:05.6]} 44. Bc6 {[%clk 0:00:20.5]} 44... Ra2 {[%clk 0:00:04.1]} 45. Kg3
{[%clk 0:00:19.2]} 45... Ra3+ {[%clk 0:00:04]} 46. f3 {[%clk 0:00:19.2]} 46...
Ne2+ {[%clk 0:00:03]} 47. Kf2 {[%clk 0:00:19.1]} 47... Nd4 {[%clk 0:00:02.7]}
48. Re4+ {[%clk 0:00:18.4]} 48... Kd6 {[%clk 0:00:01.4]} 49. Rxd4+ {[%clk
0:00:18.4]} 49... Kxc6 {[%clk 0:00:01.8]} 50. Kg3 {[%clk 0:00:17.6]} 50... Kc5
{[%clk 0:00:02]} 51. Re4 {[%clk 0:00:15.6]} 51... Kd5 {[%clk 0:00:01.8]} 52. Kg4
{[%clk 0:00:15.7]} 52... e5 {[%clk 0:00:02.2]} 53. Rb4 {[%clk 0:00:15.1]} 53...
Re3 {[%clk 0:00:01.3]} 54. Rb5+ {[%clk 0:00:13.8]} 1-0

[Event "*** Titled Tuesday Blitz"]
[Site "Chess.com"]
[Date "2020.05.05"]
[Round "2"]
[White "chenxiaoyuer"]
[Black "ilya261991"]
[Result "0-1"]
[WhiteElo "2224"]
[BlackElo "2556"]
[TimeControl "180+1"]
[EndTime "10:19:13 PDT"]
[Termination "ilya261991 won by resignation"]

1. e4 {[%clk 0:03:00.9]} 1... d6 {[%clk 0:02:58.9]} 2. d4 {[%clk 0:03:00.4]}
2... Nf6 {[%clk 0:02:58.9]} 3. Nc3 {[%clk 0:03:00.3]} 3... Nbd7 {[%clk
0:02:59.4]} 4. Nf3 {[%clk 0:03:00.3]} 4... e5 {[%clk 0:02:59.7]} 5. Bc4 {[%clk
0:03:00.1]} 5... Be7 {[%clk 0:02:59.3]} 6. O-O {[%clk 0:03:00]} 6... O-O {[%clk
0:02:59.2]} 7. Re1 {[%clk 0:03:00]} 7... c6 {[%clk 0:02:59.5]} 8. a4 {[%clk
0:02:59.6]} 8... Qc7 {[%clk 0:02:59.1]} 9. b3 {[%clk 0:02:57.9]} 9... Re8 {[%clk
0:02:57.9]} 10. Bb2 {[%clk 0:02:57.4]} 10... Nf8 {[%clk 0:02:57.7]} 11. Bd3
{[%clk 0:02:57]} 11... Ng6 {[%clk 0:02:56.7]} 12. Ne2 {[%clk 0:02:56.6]} 12...
h6 {[%clk 0:02:53.7]} 13. c4 {[%clk 0:02:54.1]} 13... Bg4 {[%clk 0:02:51]} 14.
Ng3 {[%clk 0:02:47.2]} 14... Nf4 {[%clk 0:02:50.4]} 15. h3 {[%clk 0:02:46]}
15... Bxf3 {[%clk 0:02:35.9]} 16. Qxf3 {[%clk 0:02:44.9]} 16... Nxd3 {[%clk
0:02:35.3]} 17. Qxd3 {[%clk 0:02:42.8]} 17... Bf8 {[%clk 0:02:34.6]} 18. Rad1
{[%clk 0:02:39.6]} 18... Rad8 {[%clk 0:02:32.7]} 19. Qf3 {[%clk 0:02:24.4]}
19... Nd7 {[%clk 0:02:27.3]} 20. Nf5 {[%clk 0:02:02.3]} 20... g6 {[%clk
0:02:23.4]} 21. Ne3 {[%clk 0:01:57.5]} 21... Bg7 {[%clk 0:02:22.3]} 22. d5
{[%clk 0:01:45.7]} 22... c5 {[%clk 0:02:18.4]} 23. h4 {[%clk 0:01:36.2]} 23...
Nf6 {[%clk 0:02:18.3]} 24. Ng4 {[%clk 0:01:32.8]} 24... Nxg4 {[%clk 0:02:16]}
25. Qxg4 {[%clk 0:01:32.4]} 25... Rf8 {[%clk 0:02:16.4]} 26. h5 {[%clk
0:01:27.6]} 26... Qd7 {[%clk 0:02:10.8]} 27. Qxd7 {[%clk 0:01:21.7]} 27... Rxd7
{[%clk 0:02:10.2]} 28. hxg6 {[%clk 0:01:22.6]} 28... fxg6 {[%clk 0:02:10.8]} 29.
Rd3 {[%clk 0:01:21.4]} 29... h5 {[%clk 0:02:05.8]} 30. Ree3 {[%clk 0:01:17.7]}
30... Bh6 {[%clk 0:02:04.6]} 31. Rf3 {[%clk 0:01:17.5]} 31... Rdf7 {[%clk
0:02:03.4]} 32. Rxf7 {[%clk 0:01:13.9]} 32... Rxf7 {[%clk 0:02:04.3]} 33. Kf1
{[%clk 0:01:11.9]} 33... Kf8 {[%clk 0:01:56.2]} 34. Ke2 {[%clk 0:01:11.7]} 34...
Ke7 {[%clk 0:01:55.5]} 35. Rf3 {[%clk 0:01:11.3]} 35... Rg7 {[%clk 0:01:50.7]}
36. Kd1 {[%clk 0:01:01.8]} 36... g5 {[%clk 0:01:50.2]} 37. Rh3 {[%clk
0:00:35.8]} 37... h4 {[%clk 0:01:45.1]} 38. Bc1 {[%clk 0:00:33.2]} 38... Kf6
{[%clk 0:01:43.2]} 39. Be3 {[%clk 0:00:28.8]} 39... Kg6 {[%clk 0:01:40.1]} 40.
f3 {[%clk 0:00:26.4]} 40... Rf7 {[%clk 0:01:34.2]} 41. Ke2 {[%clk 0:00:25.5]}
41... Bg7 {[%clk 0:01:33.8]} 42. Rh1 {[%clk 0:00:23.9]} 42... Bf6 {[%clk
0:01:32.7]} 43. Rh3 {[%clk 0:00:23.7]} 43... Kh5 {[%clk 0:01:31.3]} 44. g4+
{[%clk 0:00:20.7]} 44... Kg6 {[%clk 0:01:29]} 45. Rh1 {[%clk 0:00:20.5]} 45...
Rh7 {[%clk 0:01:27.5]} 46. Kf2 {[%clk 0:00:20]} 46... Bd8 {[%clk 0:01:25.7]} 47.
Kg2 {[%clk 0:00:19.9]} 47... Kf7 {[%clk 0:01:25.8]} 48. Rf1 {[%clk 0:00:19.6]}
48... Ke8 {[%clk 0:01:24.4]} 49. Rh1 {[%clk 0:00:19.5]} 49... Kd7 {[%clk
0:01:24.2]} 50. Bd2 {[%clk 0:00:19.5]} 50... a6 {[%clk 0:01:23.4]} 51. a5 {[%clk
0:00:18.8]} 51... Kc8 {[%clk 0:01:17.3]} 52. Rb1 {[%clk 0:00:18.6]} 52... Kb8
{[%clk 0:01:16.7]} 53. b4 {[%clk 0:00:17]} 53... cxb4 {[%clk 0:01:13.1]} 54.
Bxb4 {[%clk 0:00:17]} 54... Be7 {[%clk 0:01:07.3]} 55. Ba3 {[%clk 0:00:14.6]}
55... Rh8 {[%clk 0:01:06.5]} 56. Rc1 {[%clk 0:00:12]} 56... Rc8 {[%clk
0:01:06.1]} 57. Bb4 {[%clk 0:00:11.9]} 57... Kc7 {[%clk 0:01:06]} 58. c5 {[%clk
0:00:10.6]} 58... dxc5 {[%clk 0:01:02.9]} 59. Bxc5 {[%clk 0:00:06.1]} 59... Bxc5
{[%clk 0:01:00.4]} 60. Rxc5+ {[%clk 0:00:06]} 60... Kd7 {[%clk 0:01:00.9]} 61.
Rxc8 {[%clk 0:00:05.8]} 61... Kxc8 {[%clk 0:01:00.6]} 62. f4 {[%clk 0:00:05.4]}
62... exf4 {[%clk 0:00:53.8]} 63. e5 {[%clk 0:00:05.3]} 63... Kd7 {[%clk
0:00:53.9]} 64. Kf3 {[%clk 0:00:04.7]} 64... h3 {[%clk 0:00:53.4]} 65. Kf2
{[%clk 0:00:04.8]} 65... Kc7 {[%clk 0:00:48.7]} 66. Kf3 {[%clk 0:00:04.5]} 66...
b6 {[%clk 0:00:40.3]} 67. e6 {[%clk 0:00:03.7]} 67... bxa5 {[%clk 0:00:38.9]}
68. e7 {[%clk 0:00:02.3]} 68... Kd7 {[%clk 0:00:38.9]} 69. d6 {[%clk 0:00:01.8]}
69... a4 {[%clk 0:00:38.9]} 70. Kf2 {[%clk 0:00:01.5]} 0-1

[Event "*** Titled Tuesday Blitz"]
[Site "Chess.com"]
[Date "2020.05.05"]
[Round "2"]
[White "hazy13"]
[Black "SARGISMV"]
[Result "0-1"]
[WhiteElo "2186"]
[BlackElo "2428"]
[TimeControl "180+1"]
[EndTime "10:19:14 PDT"]
[Termination "SARGISMV won by resignation"]

1. d4 {[%clk 0:03:00.9]} 1... Nf6 {[%clk 0:02:59.8]} 2. c4 {[%clk 0:03:01.4]}
2... c5 {[%clk 0:03:00.2]} 3. d5 {[%clk 0:03:01.6]} 3... e6 {[%clk 0:03:00.3]}
4. Nc3 {[%clk 0:03:01.3]} 4... exd5 {[%clk 0:03:00.5]} 5. cxd5 {[%clk
0:03:02.2]} 5... d6 {[%clk 0:03:01]} 6. Nf3 {[%clk 0:03:00.4]} 6... g6 {[%clk
0:03:01.4]} 7. Nd2 {[%clk 0:03:00.4]} 7... Bg7 {[%clk 0:03:01.7]} 8. Nc4 {[%clk
0:03:00.3]} 8... O-O {[%clk 0:03:01.6]} 9. Bf4 {[%clk 0:02:59.8]} 9... Ne8
{[%clk 0:02:54.2]} 10. e3 {[%clk 0:02:56.6]} 10... a6 {[%clk 0:02:54]} 11. a4
{[%clk 0:02:55.5]} 11... Qc7 {[%clk 0:02:49.4]} 12. Bd3 {[%clk 0:02:45.8]} 12...
Nd7 {[%clk 0:02:49.4]} 13. a5 {[%clk 0:02:40.5]} 13... b5 {[%clk 0:02:42.8]} 14.
axb6 {[%clk 0:02:40.1]} 14... Nxb6 {[%clk 0:02:43.4]} 15. O-O {[%clk 0:02:40.6]}
15... Rb8 {[%clk 0:02:24.3]} 16. Na5 {[%clk 0:02:34.8]} 16... Bxc3 {[%clk
0:02:14]} 17. bxc3 {[%clk 0:02:33.1]} 17... Nxd5 {[%clk 0:02:14.6]} 18. Bh6
{[%clk 0:02:23]} 18... Ng7 {[%clk 0:02:12.6]} 19. Qf3 {[%clk 0:01:50.7]} 19...
Be6 {[%clk 0:01:40.4]} 20. Be4 {[%clk 0:01:32.4]} 20... Nxc3 {[%clk 0:01:18.9]}
21. Qf6 {[%clk 0:01:27.5]} 21... Ne2+ {[%clk 0:01:16.7]} 22. Kh1 {[%clk
0:01:23.9]} 22... Nh5 {[%clk 0:01:17.2]} 23. Qg5 {[%clk 0:00:58.3]} 23... Qd8
{[%clk 0:01:05.3]} 24. Qxd8 {[%clk 0:00:41.3]} 24... Rfxd8 {[%clk 0:01:03.9]}
25. Nc6 {[%clk 0:00:41.5]} 25... Nc3 {[%clk 0:01:01.3]} 26. Bf3 {[%clk 0:00:38]}
26... d5 {[%clk 0:00:56.4]} 27. Nxd8 {[%clk 0:00:37.5]} 27... Rxd8 {[%clk
0:00:56.2]} 28. Rxa6 {[%clk 0:00:37.2]} 28... Nf6 {[%clk 0:00:51]} 29. Bg5
{[%clk 0:00:36.3]} 29... Kg7 {[%clk 0:00:50]} 30. Rc1 {[%clk 0:00:31.4]} 30...
d4 {[%clk 0:00:49.5]} 31. Rc6 {[%clk 0:00:23]} 31... Na4 {[%clk 0:00:29.5]} 32.
Bd1 {[%clk 0:00:19.6]} 32... Nb2 {[%clk 0:00:20.2]} 33. Rc2 {[%clk 0:00:10]}
33... Nxd1 {[%clk 0:00:19.7]} 34. R6xc5 {[%clk 0:00:08.1]} 34... dxe3 {[%clk
0:00:19.5]} 35. fxe3 {[%clk 0:00:08.5]} 35... h6 {[%clk 0:00:19.2]} 36. Bf4
{[%clk 0:00:07.6]} 36... g5 {[%clk 0:00:19.3]} 37. Be5 {[%clk 0:00:07.4]} 37...
Nxe3 {[%clk 0:00:18.5]} 38. Rc1 {[%clk 0:00:06.9]} 38... Ng4 {[%clk 0:00:18.8]}
39. Bc7 {[%clk 0:00:06.3]} 39... Rd2 {[%clk 0:00:18.1]} 40. h3 {[%clk
0:00:05.7]} 40... Nf2+ {[%clk 0:00:17.6]} 41. Kg1 {[%clk 0:00:05.7]} 41... N2e4
{[%clk 0:00:18.4]} 42. Ra5 {[%clk 0:00:04.8]} 42... Kg6 {[%clk 0:00:18.8]} 43.
Be5 {[%clk 0:00:03.9]} 43... Bd5 {[%clk 0:00:18.9]} 44. Bxf6 {[%clk 0:00:04]}
44... Nxf6 {[%clk 0:00:18.6]} 45. Ra6 {[%clk 0:00:02.9]} 45... Rxg2+ {[%clk
0:00:18.6]} 46. Kf1 {[%clk 0:00:03.4]} 46... Rh2 {[%clk 0:00:19]} 47. Rc5 {[%clk
0:00:03.4]} 47... Rh1+ {[%clk 0:00:19]} 48. Ke2 {[%clk 0:00:04.3]} 48... Bg2
{[%clk 0:00:18.1]} 49. Rb5 {[%clk 0:00:03.3]} 49... Rf1 {[%clk 0:00:18.4]} 50.
Rbb6 {[%clk 0:00:03]} 50... Rf5 {[%clk 0:00:18.8]} 51. Rd6 {[%clk 0:00:02.6]}
51... Bxh3 {[%clk 0:00:19.2]} 52. Ke3 {[%clk 0:00:02.8]} 52... Bg4 {[%clk
0:00:19.6]} 53. Rab6 {[%clk 0:00:03.3]} 53... h5 {[%clk 0:00:20]} 54. Rd8 {[%clk
0:00:03.2]} 54... h4 {[%clk 0:00:19.8]} 55. Rg8+ {[%clk 0:00:03.5]} 55... Kh7
{[%clk 0:00:20]} 56. Rf8 {[%clk 0:00:03.5]} 56... Kg7 {[%clk 0:00:20.2]} 57.
Rfb8 {[%clk 0:00:03.3]} 57... h3 {[%clk 0:00:20.1]} 58. R8b7 {[%clk 0:00:04.2]}
58... h2 {[%clk 0:00:19.5]} 59. Rc7 {[%clk 0:00:05.1]} 59... h1=Q {[%clk
0:00:19.4]} 60. Rbb7 {[%clk 0:00:05.5]} 60... Qe4+ {[%clk 0:00:19.6]} 0-1